fUSD/lending_fUSD_20250109
["ID","MTS","AMOUNT","RATE_DAILY","PERIOD"]
[348259448,1736423445415,-500.0,0.00010343,2]
[348259449,1736423445425,-500.0,0.00010343,2]
[348259450,1736423445435,-1058.0,0.00010344,2]
[348259451,1736423445444,-637.45,0.00010465,2]
[348259452,1736423445453,-1000.0,0.00010521,2]
[348259453,1736423445463,-500.0,0.00010543,2]
[348259454,1736423445473,-500.0,0.00010543,2]
[348259455,1736423445483,-500.0,0.00010543,2]
[348259456,1736423445492,-500.0,0.00010543,2]
[348259457,1736423445503,-210.0,0.00010543,2]
[348259458,1736423445513,-500.0,0.00010543,2]
[348259459,1736423445523,-325.2124769,0.00010543,2]
[348259460,1736423445533,-500.0,0.00010543,2]
[348259461,1736423445542,-500.0,0.00010543,2]
[348259462,1736423445552,-500.0,0.00010543,2]
[348259463,1736423445562,-500.0,0.00010543,2]
[348259464,1736423445572,-500.0,0.00010543,2]
[348259465,1736423445582,-500.0,0.00010543,2]
[348259466,1736423445591,-500.0,0.00010543,2]
[348259467,1736423445601,-154.28,0.00010543,2]
[348259468,1736423445610,-500.0,0.00010543,2]
[348259469,1736423445620,-500.0,0.00010543,2]
[348259470,1736423445630,-376.43,0.00010543,2]
[348259471,1736423445640,-500.0,0.00010543,2]
[348259472,1736423445650,-500.0,0.00010543,2]
[348259473,1736423445659,-500.0,0.00010543,2]
[348259474,1736423445670,-500.0,0.00010543,2]
[348259475,1736423445680,-500.0,0.00010543,2]
[348259476,1736423445690,-500.0,0.00010543,2]
[348259477,1736423445699,-219.38,0.00010543,2]
[348259478,1736423445709,-500.0,0.00010543,2]
[348259479,1736423445719,-532.02,0.00010543,2]
[348259480,1736423445729,-500.0,0.00010543,2]
[348259481,1736423445739,-500.0,0.00010543,2]
[348259482,1736423445748,-500.0,0.00010543,2]
[348259483,1736423445758,-500.0,0.00010543,2]
[348259484,1736423445769,-500.0,0.00010543,2]
[348259485,1736423445778,-300.90384761,0.00010543,2]
[348259486,1736423445788,-500.0,0.00010543,2]
[348259487,1736423445798,-500.0,0.00010543,2]
[348259488,1736423445808,-500.0,0.00010543,2]
[348259489,1736423445818,-500.0,0.00010543,2]
[348259490,1736423445828,-500.0,0.00010543,2]
[348259491,1736423445837,-546.82,0.00010543,2]
[348259492,1736423445846,-500.0,0.00010543,2]
[348259493,1736423445856,-422.7966005,0.00010543,2]
[348259494,1736423445865,-500.0,0.00010543,2]
[348259495,1736423445875,-500.0,0.00010543,2]
[348259496,1736423445885,-500.0,0.00010543,2]
[348259498,1736423445894,-684.82,0.00010543,2]
[348259499,1736423445907,-500.0,0.00010543,2]
[348259500,1736423445916,-500.0,0.00010543,2]
[348259501,1736423445926,-500.0,0.00010543,2]
[348259502,1736423445936,-500.0,0.00010543,2]
[348259503,1736423445947,-500.0,0.00010543,2]
[348259504,1736423445956,-500.0,0.00010543,2]
[348259505,1736423445966,-636.05,0.00010543,2]
[348259506,1736423445979,-500.0,0.00010543,2]
[348259507,1736423445989,-592.38,0.00010543,2]
[348259508,1736423445999,-507.35,0.00010543,2]
[348259509,1736423446009,-562.24,0.00010543,2]
[348259510,1736423446019,-500.0,0.00010543,2]
[348259511,1736423446028,-500.0,0.00010543,2]
[348259512,1736423446038,-500.0,0.00010543,2]
[348259513,1736423446048,-500.0,0.00010543,2]
[348259514,1736423446058,-500.0,0.00010543,2]
[348259515,1736423446069,-500.0,0.00010543,2]
[348259516,1736423446079,-500.0,0.00010544,2]
[348259517,1736423446089,-500.0,0.00010544,2]
[348259518,1736423446099,-500.0,0.00010544,2]
[348259519,1736423446108,-500.0,0.00010544,2]
[348259520,1736423446118,-1149.82,0.00010544,2]
[348259521,1736423446127,-500.0,0.00010544,2]
[348259522,1736423446138,-643.86,0.00010544,2]
[348259523,1736423446148,-500.0,0.00010544,2]
[348259524,1736423446157,-500.0,0.00010544,2]
[348259525,1736423446167,-500.0,0.00010544,2]
[348259526,1736423446176,-500.0,0.00010544,2]
[348259527,1736423446189,-819.27,0.00010544,2]
[348259528,1736423446199,-500.0,0.00010544,2]
[348259529,1736423446212,-500.0,0.00010544,2]
[348259530,1736423446221,-500.0,0.00010544,2]
[348259531,1736423446231,-500.0,0.00010544,2]
[348259532,1736423446242,-500.0,0.00010544,2]
[348259533,1736423446251,-500.0,0.00010544,2]
[348259534,1736423446262,-500.0,0.00010544,2]
[348259535,1736423446271,-588.56,0.00010544,2]
[348259536,1736423446281,-500.0,0.00010544,2]
[348259537,1736423446291,-500.0,0.00010544,2]
[348259538,1736423446300,-500.0,0.00010544,2]
[348259539,1736423446310,-500.0,0.00010544,2]
[348259540,1736423446319,-210.22,0.00010544,2]
[348259541,1736423446329,-1170.51,0.00010544,2]
[348259542,1736423446339,-500.0,0.00010544,2]
[348259543,1736423446349,-1156.24,0.00010544,2]
[348259544,1736423446359,-500.0,0.00010544,2]
[348259545,1736423446369,-500.0,0.00010544,2]
[348259546,1736423446379,-500.0,0.00010544,2]
[348259547,1736423446389,-500.0,0.00010544,2]
[348259548,1736423446399,-500.0,0.00010545,2]
[348259549,1736423446410,-500.0,0.00010545,2]
[348259550,1736423446420,-500.0,0.00010545,2]
[348259551,1736423446430,-500.0,0.00010545,2]
[348259552,1736423446440,-500.0,0.00010545,2]
[348259553,1736423446451,-500.0,0.00010545,2]
[348259554,1736423446462,-500.0,0.00010545,2]
[348259555,1736423446471,-500.0,0.00010545,2]
[348259556,1736423446481,-507.54,0.00010545,2]
[348259557,1736423446491,-750.84,0.00010545,2]
[348259558,1736423446500,-500.0,0.00010545,2]
[348259559,1736423446511,-500.0,0.00010545,2]
[348259560,1736423446520,-634.34,0.00010545,2]
[348259561,1736423446530,-2622.49,0.00010545,2]
[348259562,1736423446540,-584.34,0.00010545,2]
[348259563,1736423446551,-333.31,0.00010545,2]
[348259564,1736423446563,-1454.61,0.00010545,2]
[348259565,1736423446572,-500.0,0.00010545,2]
[348259566,1736423446582,-500.0,0.00010545,2]
[348259567,1736423446592,-500.0,0.00010545,2]
[348259568,1736423446602,-500.0,0.00010545,2]
[348259569,1736423446612,-500.0,0.00010545,2]
[348259570,1736423446622,-720.41,0.00010545,2]
[348259571,1736423446632,-500.0,0.00010545,2]
[348259572,1736423446642,-1057.26,0.00010545,2]
[348259573,1736423446652,-958.82,0.00010545,2]
[348259574,1736423446662,-720.59,0.00010617,2]
[348259575,1736423446671,-705.64,0.00010617,2]
[348259576,1736423446681,-500.0,0.00010617,2]
[348259577,1736423446691,-406.70483448,0.00010617,2]
[348259578,1736423446700,-2511.1518872,0.000108,2]
[348259579,1736423446710,-500.0,0.00010817,2]
[348259580,1736423446719,-500.0,0.00010817,2]
[348259581,1736423446729,-500.0,0.00010817,2]
[348259582,1736423446739,-500.0,0.00010817,2]
[348259583,1736423446748,-500.0,0.00010817,2]
[348259584,1736423446758,-500.0,0.00010817,2]
[348259585,1736423446768,-500.0,0.00010817,2]
[348259586,1736423446778,-167.95,0.00010817,2]
[348259587,1736423446788,-500.0,0.00010817,2]
[348259588,1736423446797,-500.0,0.00010817,2]
[348259589,1736423446807,-500.0,0.00010817,2]
[348259590,1736423446816,-500.0,0.00010817,2]
[348259591,1736423446826,-532.02,0.00010817,2]
[348259592,1736423446835,-500.0,0.00010817,2]
[348259593,1736423446845,-500.0,0.00010817,2]
[348259594,1736423446856,-303.16162831,0.00010817,2]
[348259595,1736423446866,-298.13,0.00010817,2]
[348259596,1736423446876,-500.0,0.00010817,2]
[348259597,1736423446886,-500.0,0.00010817,2]
[348259598,1736423446895,-500.0,0.00010817,2]
[348259599,1736423446907,-546.82,0.00010817,2]
[348259600,1736423446917,-500.0,0.00010817,2]
[348259601,1736423446926,-500.0,0.00010817,2]
[348259602,1736423446936,-500.0,0.00010817,2]
[348259603,1736423446946,-500.0,0.00010817,2]
[348259604,1736423446956,-684.82,0.00010817,2]
[348259605,1736423446965,-500.0,0.00010817,2]
[348259606,1736423446974,-500.0,0.00010817,2]
[348259607,1736423446983,-500.0,0.00010817,2]
[348259608,1736423446993,-500.0,0.00010817,2]
[348259609,1736423447003,-500.0,0.00010817,2]
[348259610,1736423447012,-636.05,0.00010817,2]
[348259611,1736423447022,-500.0,0.00010817,2]
[348259612,1736423447031,-592.38,0.00010817,2]
[348259613,1736423447041,-507.35,0.00010817,2]
[348259614,1736423447051,-500.0,0.00010817,2]
[348259615,1736423447062,-500.0,0.00010817,2]
[348259616,1736423447071,-500.0,0.00010817,2]
[348259617,1736423447080,-500.0,0.00010817,2]
[348259618,1736423447089,-500.0,0.00010817,2]
[348259619,1736423447099,-1149.82,0.00010818,2]
[348259620,1736423447109,-500.0,0.00010818,2]
[348259621,1736423447119,-500.0,0.00010818,2]
[348259622,1736423447128,-500.0,0.00010818,2]
[348259623,1736423447141,-819.27,0.00010818,2]
[348259624,1736423447152,-500.0,0.00010818,2]
[348259625,1736423447164,-500.0,0.00010818,2]
[348259626,1736423447174,-500.0,0.00010818,2]
[348259627,1736423447185,-500.0,0.00010818,2]
[348259628,1736423447194,-500.0,0.00010818,2]
[348259629,1736423447204,-500.0,0.00010818,2]
[348259630,1736423447214,-588.56,0.00010818,2]
[348259631,1736423447224,-500.0,0.00010818,2]
[348259632,1736423447233,-500.0,0.00010818,2]
[348259633,1736423447242,-1170.51,0.00010818,2]
[348259634,1736423447253,-500.0,0.00010818,2]
[348259635,1736423447262,-1156.24,0.00010818,2]
[348259636,1736423447271,-500.0,0.00010818,2]
[348259637,1736423447281,-500.0,0.00010818,2]
[348259638,1736423447290,-500.0,0.00010818,2]
[348259639,1736423447299,-500.0,0.00010818,2]
[348259640,1736423447308,-500.0,0.00010819,2]
[348259641,1736423447318,-500.0,0.00010819,2]
[348259642,1736423447327,-500.0,0.00010819,2]
[348259643,1736423447336,-500.0,0.00010819,2]
[348259644,1736423447346,-500.0,0.00010819,2]
[348259645,1736423447355,-507.54,0.00010819,2]
[348259646,1736423447365,-750.84,0.00010819,2]
[348259647,1736423447374,-500.0,0.00010819,2]
[348259648,1736423447384,-500.0,0.00010819,2]
[348259649,1736423447394,-634.34,0.00010819,2]
[348259650,1736423447403,-2622.49,0.00010819,2]
[348259651,1736423447413,-584.34,0.00010819,2]
[348259652,1736423447423,-1454.61,0.00010819,2]
[348259653,1736423447432,-500.0,0.00010819,2]
[348259654,1736423447442,-500.0,0.00010819,2]
[348259655,1736423447451,-500.0,0.00010819,2]
[348259656,1736423447460,-500.0,0.00010819,2]
[348259657,1736423447470,-500.0,0.00010819,2]
[348259658,1736423447479,-720.41,0.00010819,2]
[348259659,1736423447535,-500.0,0.00010819,2]
[348259660,1736423447545,-1057.26,0.00010819,2]
[348259661,1736423447555,-958.82,0.00010819,2]
[348259662,1736423447564,-1058.0,0.00010888,2]
[348259663,1736423447573,-720.59,0.00010891,2]
[348259664,1736423447582,-705.64,0.00010891,2]
[348259665,1736423447592,-569.710804,0.00010898,2]
[348259666,1736423447602,-946.29,0.00010898,2]
[348259667,1736423447611,-502.235295,0.00010898,2]
[348259668,1736423447621,-161.232718,0.00010898,2]
[348259669,1736423447631,-500.0,0.00010898,2]
[348259670,1736423447640,-500.0,0.00010898,2]
[348259671,1736423447650,-559.52,0.00010898,2]
[348259672,1736423447659,-176.435235,0.00010898,2]
[348259673,1736423447669,-500.0,0.00010898,2]
[348259674,1736423447679,-500.0,0.00010898,2]
[348259675,1736423447688,-1333.84,0.00010898,2]
[348259676,1736423447697,-176.435234,0.00010898,2]
[348259677,1736423447707,-500.0,0.00010898,2]
[348259678,1736423447717,-500.0,0.00010898,2]
[348259679,1736423447726,-598.91,0.00010898,2]
[348259680,1736423447736,-500.0,0.00010898,2]
[348259681,1736423447746,-500.0,0.00010898,2]
[348259682,1736423447757,-500.0,0.00010898,2]
[348259683,1736423447766,-624.57,0.00010898,2]
[348259684,1736423447776,-632.88,0.00010898,2]
[348259685,1736423447789,-500.0,0.00010898,2]
[348259686,1736423447798,-1010.4,0.00010898,2]
[348259687,1736423447807,-1364.68,0.00010898,2]
[348259688,1736423447815,-595.42,0.00010898,2]
[348259689,1736423447824,-500.0,0.00010898,2]
[348259690,1736423447833,-500.0,0.00010898,2]
[348259691,1736423447843,-1000.0,0.000109,2]
[348259692,1736423447852,-1000.0,0.000109,2]
[348259693,1736423447861,-1000.0,0.000109,2]
[348259694,1736423447871,-1000.0,0.000109,2]
[348259695,1736423447881,-1000.0,0.000109,2]
[348259696,1736423447890,-1000.0,0.000109,2]
[348259697,1736423447899,-790.0,0.000109,3]
[348259698,1736423447912,-339.56480558,0.000109,3]
[348259699,1736423447934,-660.43519442,0.000109,3]
[348259700,1736423447943,-1000.0,0.000109,3]
[348259701,1736423447952,-1000.0,0.000109,3]
[348259702,1736423447962,-1000.0,0.000109,2]
[348259703,1736423447972,-1000.0,0.000109,2]
[348259704,1736423447984,-1000.0,0.000109,2]
[348259705,1736423447994,-1000.0,0.000109,2]
[348259706,1736423448005,-1000.0,0.000109,2]
[348259707,1736423448015,-1000.0,0.000109,3]
[348259708,1736423448025,-491.0,0.000109,3]
[348259709,1736423448035,-1000.0,0.000109,2]
[348259710,1736423448045,-1000.0,0.000109,2]
[348259711,1736423448054,-210.78867926,0.000109,2]
[348259712,1736423448064,-150.0,0.00010959,2]
[348259713,1736423448074,-210.78867919,0.00010969,2]
[348259714,1736423448084,-500.0,0.00010986,2]
[348259715,1736423448094,-2015.0,0.00010999,2]
[348259716,1736423448103,-1267.0,0.00010999,2]
[348259717,1736423448113,-150.0,0.00010999,2]
[348259718,1736423448123,-635.0,0.00010999,2]
[348259719,1736423448133,-566.0,0.00010999,2]
[348259720,1736423448143,-1861.0,0.00010999,2]
[348259721,1736423448152,-3777.0,0.00010999,2]
[348259722,1736423448161,-915.0,0.00010999,2]
[348259723,1736423448171,-1258.0,0.00010999,2]
[348259724,1736423448180,-820.0,0.00010999,2]
[348259725,1736423448190,-3977.0,0.00010999,2]
[348259726,1736423448199,-537.0,0.00010999,2]
[348259727,1736423448211,-150.0,0.00010999,2]
[348259728,1736423448220,-150.0,0.00010999,2]
[348259729,1736423448230,-3895.0,0.00010999,2]
[348259730,1736423448241,-9622.0,0.00010999,2]
[348259731,1736423448250,-1103.0,0.00010999,2]
[348259732,1736423448259,-550.0,0.00011,2]
[348259733,1736423448268,-210.78867919,0.00011038,2]
[348259734,1736423448278,-150.0,0.00011047,2]
[348259735,1736423448288,-500.0,0.00011091,2]
[348259736,1736423448298,-500.0,0.00011091,2]
[348259737,1736423448307,-500.0,0.00011091,2]
[348259738,1736423448317,-500.0,0.00011091,2]
[348259739,1736423448327,-500.0,0.00011091,2]
[348259740,1736423448337,-500.0,0.00011091,2]
[348259741,1736423448347,-500.0,0.00011091,2]
[348259742,1736423448356,-389.1,0.00011091,2]
[348259743,1736423448366,-500.0,0.00011091,2]
[348259744,1736423448376,-500.0,0.00011091,2]
[348259745,1736423448385,-532.02,0.00011091,2]
[348259746,1736423448395,-500.0,0.00011091,2]
[348259747,1736423448405,-500.0,0.00011091,2]
[348259748,1736423448415,-500.0,0.00011091,2]
[348259749,1736423448425,-500.0,0.00011091,2]
[348259750,1736423448434,-500.0,0.00011091,2]
[348259751,1736423448444,-546.82,0.00011091,2]
[348259752,1736423448454,-500.0,0.00011091,2]
[348259753,1736423448464,-500.0,0.00011091,2]
[348259754,1736423448474,-500.0,0.00011091,2]
[348259755,1736423448484,-500.0,0.00011091,2]
[348259756,1736423448494,-684.82,0.00011091,2]
[348259757,1736423448503,-333.52697546,0.00011091,2]
[348259758,1736423448513,-500.0,0.00011091,2]
[348259759,1736423448523,-500.0,0.00011091,2]
[348259760,1736423448532,-500.0,0.00011091,2]
[348259761,1736423448542,-416.79392219,0.00011091,2]
[348259762,1736423448552,-636.05,0.00011091,2]
[348259763,1736423448562,-500.0,0.00011091,2]
[348259764,1736423448572,-592.38,0.00011091,2]
[348259765,1736423448581,-507.35,0.00011091,2]
[348259766,1736423448591,-500.0,0.00011091,2]
[348259767,1736423448601,-473.64272896,0.00011091,2]
[348259768,1736423448611,-500.0,0.00011091,2]
[348259769,1736423448620,-1149.82,0.00011092,2]
[348259770,1736423448630,-500.0,0.00011092,2]
[348259771,1736423448639,-500.0,0.00011092,2]
[348259772,1736423448649,-500.0,0.00011092,2]
[348259773,1736423448659,-819.27,0.00011092,2]
[348259774,1736423448669,-500.0,0.00011092,2]
[348259775,1736423448678,-500.0,0.00011092,2]
[348259776,1736423448687,-500.0,0.00011092,2]
[348259777,1736423448697,-500.0,0.00011092,2]
[348259778,1736423448707,-500.0,0.00011092,2]
[348259779,1736423448717,-500.0,0.00011092,2]
[348259780,1736423448727,-588.56,0.00011092,2]
[348259781,1736423448736,-500.0,0.00011092,2]
[348259782,1736423448746,-500.0,0.00011092,2]
[348259783,1736423448756,-1170.51,0.00011092,2]
[348259784,1736423448767,-500.0,0.00011092,2]
[348259785,1736423448776,-1156.24,0.00011092,2]
[348259786,1736423448786,-500.0,0.00011092,2]
[348259787,1736423448796,-500.0,0.00011092,2]
[348259788,1736423448805,-500.0,0.00011092,2]
[348259789,1736423448815,-500.0,0.00011092,2]
[348259790,1736423448824,-500.0,0.00011093,2]
[348259791,1736423448834,-500.0,0.00011093,2]
[348259792,1736423448843,-500.0,0.00011093,2]
[348259793,1736423448853,-500.0,0.00011093,2]
[348259794,1736423448862,-500.0,0.00011093,2]
[348259795,1736423448872,-507.54,0.00011093,2]
[348259796,1736423448881,-750.84,0.00011093,2]
[348259797,1736423448890,-361.47,0.00011093,2]
[348259798,1736423448899,-500.0,0.00011093,2]
[348259799,1736423448912,-634.34,0.00011093,2]
[348259800,1736423448921,-2622.49,0.00011093,2]
[348259801,1736423448931,-584.34,0.00011093,2]
[348259802,1736423448940,-1454.61,0.00011093,2]
[348259803,1736423448949,-500.0,0.00011093,2]
[348259804,1736423448959,-500.0,0.00011093,2]
[348259805,1736423448968,-500.0,0.00011093,2]
[348259806,1736423448978,-500.0,0.00011093,2]
[348259807,1736423448987,-720.41,0.00011093,2]
[348259808,1736423448997,-500.0,0.00011093,2]
[348259809,1736423449007,-1057.26,0.00011093,2]
[348259810,1736423449016,-958.82,0.00011093,2]
[348259811,1736423449027,-210.78867919,0.00011107,2]
[348259812,1736423449036,-587.0,0.0001112,2]
[348259813,1736423449046,-720.59,0.00011165,2]
[348259814,1736423449056,-705.64,0.00011165,2]
[348259815,1736423449065,-569.710804,0.00011172,2]
[348259816,1736423449075,-502.235295,0.00011172,2]
[348259817,1736423449084,-946.29,0.00011172,2]
[348259818,1736423449094,-575.66,0.00011172,2]
[348259819,1736423449103,-1333.84,0.00011172,2]
[348259820,1736423449113,-500.0,0.00011172,2]
[348259821,1736423449124,-500.0,0.00011172,2]
[348259822,1736423449135,-500.0,0.00011172,2]
[348259823,1736423449145,-500.0,0.00011172,2]
[348259824,1736423449154,-624.57,0.00011172,2]
[348259825,1736423449164,-632.88,0.00011172,2]
[348259826,1736423449174,-500.0,0.00011172,2]
[348259827,1736423449183,-1010.4,0.00011172,2]
[348259828,1736423449192,-1364.68,0.00011172,2]
[348259829,1736423449201,-595.42,0.00011172,2]
[348259830,1736423449210,-500.0,0.00011172,2]
[348259831,1736423449220,-158.88,0.00011172,2]
[348259832,1736423449229,-210.78867919,0.00011176,2]
[348259833,1736423449239,-1000.0,0.00011243,2]
[348259834,1736423449248,-210.78867919,0.00011245,2]
[348259835,1736423449259,-210.78867919,0.00011314,2]
[348259836,1736423449269,-318.63,0.00011333,2]
[348259837,1736423449278,-500.0,0.00011365,2]
[348259838,1736423449287,-500.0,0.00011365,2]
[348259839,1736423449297,-163.56666544,0.00011365,2]
[348259840,1736423449307,-500.0,0.00011365,2]
[348259841,1736423449317,-500.0,0.00011365,2]
[348259842,1736423449326,-499.64475494,0.00011365,2]
[348259843,1736423449336,-500.0,0.00011365,2]
[348259844,1736423449345,-500.0,0.00011365,2]
[348259845,1736423449356,-597.45928111,0.00011365,2]
[348259846,1736423449366,-532.02,0.00011365,2]
[348259847,1736423449376,-500.0,0.00011365,2]
[348259848,1736423449385,-500.0,0.00011365,2]
[348259849,1736423449395,-500.0,0.00011365,2]
[348259850,1736423449404,-500.0,0.00011365,2]
[348259851,1736423449414,-500.0,0.00011365,2]
[348259852,1736423449424,-546.82,0.00011365,2]
[348259853,1736423449434,-500.0,0.00011365,2]
[348259854,1736423449443,-500.0,0.00011365,2]
[348259855,1736423449453,-500.0,0.00011365,2]
[348259856,1736423449463,-500.0,0.00011365,2]
[348259857,1736423449473,-684.82,0.00011365,2]
[348259858,1736423449483,-500.0,0.00011365,2]
[348259859,1736423449493,-500.0,0.00011365,2]
[348259860,1736423449503,-500.0,0.00011365,2]
[348259861,1736423449515,-636.05,0.00011365,2]
[348259862,1736423449526,-500.0,0.00011365,2]
[348259863,1736423449535,-592.38,0.00011365,2]
[348259864,1736423449544,-507.35,0.00011365,2]
[348259865,1736423449555,-500.0,0.00011365,2]
[348259866,1736423449565,-500.0,0.00011365,2]
[348259867,1736423449574,-1149.82,0.00011366,2]
[348259868,1736423449585,-500.0,0.00011366,2]
[348259869,1736423449595,-500.0,0.00011366,2]
[348259870,1736423449604,-500.0,0.00011366,2]
[348259871,1736423449615,-819.27,0.00011366,2]
[348259872,1736423449627,-367.72252485,0.00011366,2]
[348259873,1736423449637,-500.0,0.00011366,2]
[348259874,1736423449649,-500.0,0.00011366,2]
[348259875,1736423449659,-500.0,0.00011366,2]
[348259876,1736423449669,-330.96,0.00011366,2]
[348259877,1736423449678,-500.0,0.00011366,2]
[348259878,1736423449688,-588.56,0.00011366,2]
[348259879,1736423449698,-500.0,0.00011366,2]
[348259880,1736423449709,-500.0,0.00011366,2]
[348259881,1736423449719,-1170.51,0.00011366,2]
[348259882,1736423449728,-500.0,0.00011366,2]
[348259883,1736423449739,-1156.24,0.00011366,2]
[348259884,1736423449750,-500.0,0.00011366,2]
[348259885,1736423449762,-500.0,0.00011366,2]
[348259886,1736423449771,-500.0,0.00011366,2]
[348259887,1736423449782,-500.0,0.00011366,2]
[348259888,1736423449791,-500.0,0.00011367,2]
[348259889,1736423449802,-500.0,0.00011367,2]
[348259890,1736423449812,-500.0,0.00011367,2]
[348259891,1736423449821,-500.0,0.00011367,2]
[348259892,1736423449831,-500.0,0.00011367,2]
[348259893,1736423449841,-507.54,0.00011367,2]
[348259894,1736423449850,-750.84,0.00011367,2]
[348259895,1736423449860,-500.0,0.00011367,2]
[348259896,1736423449870,-634.34,0.00011367,2]
[348259897,1736423449879,-2622.49,0.00011367,2]
[348259898,1736423449889,-584.34,0.00011367,2]
[348259899,1736423449900,-1454.61,0.00011367,2]
[348259900,1736423449913,-500.0,0.00011367,2]
[348259901,1736423449923,-500.0,0.00011367,2]
[348259902,1736423449932,-500.0,0.00011367,2]
[348259903,1736423449942,-500.0,0.00011367,2]
[348259904,1736423449953,-720.41,0.00011367,2]
[348259905,1736423449963,-1057.26,0.00011367,2]
[348259906,1736423449974,-958.82,0.00011367,2]
[348259907,1736423449984,-210.78867919,0.00011383,2]
[348259908,1736423449994,-157.134,0.000114,2]
[348259909,1736423450005,-720.59,0.00011439,2]
[348259910,1736423450015,-705.64,0.00011439,2]
[348259911,1736423450025,-569.710804,0.00011446,2]
[348259912,1736423450034,-502.235295,0.00011446,2]
[348259913,1736423450043,-946.29,0.00011446,2]
[348259914,1736423450053,-1333.84,0.00011446,2]
[348259915,1736423450063,-500.0,0.00011446,2]
[348259916,1736423450073,-500.0,0.00011446,2]
[348259917,1736423450083,-500.0,0.00011446,2]
[348259918,1736423450092,-624.57,0.00011446,2]
[348259919,1736423450103,-632.88,0.00011446,2]
[348259920,1736423450113,-500.0,0.00011446,2]
[348259921,1736423450123,-1010.4,0.00011446,2]
[348259922,1736423450132,-1364.68,0.00011446,2]
[348259923,1736423450143,-595.42,0.00011446,2]
[348259924,1736423450152,-210.78867919,0.00011452,2]
[348259925,1736423450163,-1058.0,0.00011461,2]
[348259926,1736423450173,-2751.0,0.00011507,2]
[348259927,1736423450182,-210.78867919,0.00011521,2]
[348259928,1736423450192,-1500.0,0.00011522,2]
[348259929,1736423450201,-210.78867919,0.0001159,2]
[348259930,1736423450211,-483.67,0.00011612,2]
[348259931,1736423450221,-410.98364749,0.00011619,2]
[348259932,1736423450230,-500.0,0.00011639,2]
[348259933,1736423450241,-162.57483499,0.00011639,2]
[348259934,1736423450251,-500.0,0.00011639,2]
[348259935,1736423450264,-500.0,0.00011639,2]
[348259936,1736423450274,-500.0,0.00011639,2]
[348259937,1736423450284,-539.84947446,0.00011639,2]
[348259938,1736423450294,-532.02,0.00011639,2]
[348259939,1736423450303,-500.0,0.00011639,2]
[348259940,1736423450313,-500.0,0.00011639,2]
[348259941,1736423450323,-500.0,0.00011639,2]
[348259942,1736423450333,-409.03799659,0.00011639,2]
[348259943,1736423450342,-500.0,0.00011639,2]
[348259944,1736423450352,-546.82,0.00011639,2]
[348259945,1736423450361,-400.7642279,0.00011639,2]
[348259946,1736423450371,-500.0,0.00011639,2]
[348259947,1736423450381,-500.0,0.00011639,2]
[348259948,1736423450390,-500.0,0.00011639,2]